[Event "Live Chess"]
[Site "Chess.com"]
[Date "2011.01.28"]
[Round "-"]
[White "AmadouCeesay"]
[Black "hipposcottimus"]
[Result "0-1"]
[CurrentPosition "r4rk1/2P1b1pp/pP6/3Nn3/2PpPp2/3P1Pp1/6Kq/R1BQ1R2 w - -"]
[Timezone "UTC"]
[ECO "A00"]
[ECOUrl "https://www.chess.com/openings/Kings-Fianchetto-Opening-1...e5-2.Bg2-d5"]
[UTCDate "2011.01.28"]
[UTCTime "23:44:54"]
[WhiteElo "1562"]
[BlackElo "1556"]
[TimeControl "60"]
[Termination "hipposcottimus won by checkmate"]
[StartTime "23:44:54"]
[EndDate "2011.01.28"]
[EndTime "23:46:24"]
[Link "https://www.chess.com/game/live/92430703"]

1. g3 {[%clk 0:01:00]} 1... e5 {[%clk 0:01:00]} 2. Bg2 {[%clk 0:00:59.5]} 2... d5 {[%clk 0:00:58.8]} 3. e3 {[%clk 0:00:59.1]} 3... c5 {[%clk 0:00:57.4]} 4. Ne2 {[%clk 0:00:58.6]} 4... f5 {[%clk 0:00:56.6]} 5. O-O {[%clk 0:00:58.1]} 5... b5 {[%clk 0:00:55.9]} 6. b3 {[%clk 0:00:57.6]} 6... Nf6 {[%clk 0:00:53.3]} 7. Bb2 {[%clk 0:00:57]} 7... Nc6 {[%clk 0:00:52.9]} 8. d3 {[%clk 0:00:56]} 8... Be7 {[%clk 0:00:52.2]} 9. Nd2 {[%clk 0:00:55.4]} 9... O-O {[%clk 0:00:50.5]} 10. c4 {[%clk 0:00:54.4]} 10... d4 {[%clk 0:00:49.4]} 11. e4 {[%clk 0:00:53.1]} 11... f4 {[%clk 0:00:48]} 12. f3 {[%clk 0:00:51.5]} 12... Nh5 {[%clk 0:00:46.5]} 13. a4 {[%clk 0:00:50.7]} 13... fxg3 {[%clk 0:00:45.5]} 14. h3 {[%clk 0:00:48.5]} 14... Nf4 {[%clk 0:00:43.5]} 15. Nxf4 {[%clk 0:00:46.8]} 15... exf4 {[%clk 0:00:42.4]} 16. Bc1 {[%clk 0:00:45.1]} 16... Ne5 {[%clk 0:00:41]} 17. Nb1 {[%clk 0:00:42.4]} 17... Bh4 {[%clk 0:00:38.4]} 18. axb5 {[%clk 0:00:40.9]} 18... Bb7 {[%clk 0:00:36.6]} 19. Na3 {[%clk 0:00:39.8]} 19... Qc8 {[%clk 0:00:35.6]} 20. Nc2 {[%clk 0:00:38.7]} 20... a6 {[%clk 0:00:34.7]} 21. b6 {[%clk 0:00:37]} 21... Bc6 {[%clk 0:00:33.6]} 22. b4 {[%clk 0:00:36.1]} 22... Bd7 {[%clk 0:00:32.2]} 23. bxc5 {[%clk 0:00:34.3]} 23... Bxh3 {[%clk 0:00:31.8]} 24. Nb4 {[%clk 0:00:32.2]} 24... Bxg2 {[%clk 0:00:30.5]} 25. Kxg2 {[%clk 0:00:31.3]} 25... Be7 {[%clk 0:00:27.3]} 26. Nd5 {[%clk 0:00:27.3]} 26... Qe6 {[%clk 0:00:26.1]} 27. c6 {[%clk 0:00:25.8]} 27... Qh6 {[%clk 0:00:21.3]} 28. c7 {[%clk 0:00:24.8]} 28... Qh2# {[%clk 0:00:20]} 0-1

[Event "Live Chess"]
[Site "Chess.com"]
[Date "2011.01.28"]
[Round "-"]
[White "hipposcottimus"]
[Black "AmadouCeesay"]
[Result "0-1"]
[CurrentPosition "8/ppp2pp1/5k1p/3P4/1PP2P2/P2r4/6PP/4R1K1 w - -"]
[Timezone "UTC"]
[ECO "B01"]
[ECOUrl "https://www.chess.com/openings/Scandinavian-Defense-2.exd5"]
[UTCDate "2011.01.28"]
[UTCTime "23:42:35"]
[WhiteElo "1547"]
[BlackElo "1571"]
[TimeControl "60"]
[Termination "AmadouCeesay won on time"]
[StartTime "23:42:35"]
[EndDate "2011.01.28"]
[EndTime "23:44:45"]
[Link "https://www.chess.com/game/live/92430074"]

1. e4 {[%clk 0:01:00]} 1... d5 {[%clk 0:01:00]} 2. exd5 {[%clk 0:00:58.8]} 2... Bd7 {[%clk 0:00:57.4]} 3. Nf3 {[%clk 0:00:56.5]} 3... Nf6 {[%clk 0:00:56.9]} 4. c4 {[%clk 0:00:55.2]} 4... e6 {[%clk 0:00:56.3]} 5. Nc3 {[%clk 0:00:53.8]} 5... e5 {[%clk 0:00:55]} 6. Nxe5 {[%clk 0:00:52.3]} 6... Bb4 {[%clk 0:00:52.8]} 7. Be2 {[%clk 0:00:38.6]} 7... O-O {[%clk 0:00:50.7]} 8. O-O {[%clk 0:00:36.7]} 8... Qe7 {[%clk 0:00:49.1]} 9. Nxd7 {[%clk 0:00:36]} 9... Qxd7 {[%clk 0:00:47.2]} 10. Bf3 {[%clk 0:00:35.3]} 10... Bxc3 {[%clk 0:00:46.2]} 11. dxc3 {[%clk 0:00:34.1]} 11... Qf5 {[%clk 0:00:44.1]} 12. Be3 {[%clk 0:00:31.3]} 12... Ne4 {[%clk 0:00:42.4]} 13. Qd4 {[%clk 0:00:28.1]} 13... Nf6 {[%clk 0:00:37.3]} 14. Qh4 {[%clk 0:00:21.2]} 14... Qg6 {[%clk 0:00:34.3]} 15. Bg5 {[%clk 0:00:17.9]} 15... Nbd7 {[%clk 0:00:31]} 16. Bg4 {[%clk 0:00:15.9]} 16... Nxg4 {[%clk 0:00:28.2]} 17. Qxg4 {[%clk 0:00:15.6]} 17... Nf6 {[%clk 0:00:26.7]} 18. Qg3 {[%clk 0:00:13.8]} 18... h6 {[%clk 0:00:25]} 19. Bxf6 {[%clk 0:00:12.4]} 19... Qxf6 {[%clk 0:00:23.1]} 20. Qe3 {[%clk 0:00:10.6]} 20... Rfe8 {[%clk 0:00:21.8]} 21. Qd4 {[%clk 0:00:10.1]} 21... Qxd4 {[%clk 0:00:19.1]} 22. cxd4 {[%clk 0:00:09.8]} 22... Re4 {[%clk 0:00:17.9]} 23. f4 {[%clk 0:00:09.6]} 23... Rxd4 {[%clk 0:00:16.3]} 24. b3 {[%clk 0:00:09.4]} 24... Re8 {[%clk 0:00:14.3]} 25. Rae1 {[%clk 0:00:09]} 25... Kf8 {[%clk 0:00:13.3]} 26. Rxe8+ {[%clk 0:00:07.8]} 26... Kxe8 {[%clk 0:00:12.4]} 27. Re1+ {[%clk 0:00:07.5]} 27... Kd8 {[%clk 0:00:11.6]} 28. Rf1 {[%clk 0:00:07.2]} 28... Rd2 {[%clk 0:00:10.3]} 29. Ra1 {[%clk 0:00:07]} 29... Kd7 {[%clk 0:00:09.5]} 30. a3 {[%clk 0:00:06.5]} 30... Kd6 {[%clk 0:00:08.8]} 31. b4 {[%clk 0:00:05.1]} 31... Ke7 {[%clk 0:00:07.1]} 32. Rc1 {[%clk 0:00:02.4]} 32... Kf6 {[%clk 0:00:06.6]} 33. Re1 {[%clk 0:00:00.5]} 33... Rd3 {[%clk 0:00:06]} 0-1

[Event "Live Chess"]
[Site "Chess.com"]
[Date "2011.01.28"]
[Round "-"]
[White "AmadouCeesay"]
[Black "hipposcottimus"]
[Result "0-1"]
[CurrentPosition "R7/6pp/1r4k1/3b1p2/2pPpP2/2p1P1PP/8/3B2K1 w - -"]
[Timezone "UTC"]
[ECO "A00"]
[ECOUrl "https://www.chess.com/openings/Kings-Fianchetto-Opening-1...e5-2.Bg2-d5"]
[UTCDate "2011.01.28"]
[UTCTime "23:40:14"]
[WhiteElo "1563"]
[BlackElo "1555"]
[TimeControl "60"]
[Termination "hipposcottimus won on time"]
[StartTime "23:40:14"]
[EndDate "2011.01.28"]
[EndTime "23:42:12"]
[Link "https://www.chess.com/game/live/92429496"]

1. g3 {[%clk 0:01:00]} 1... e5 {[%clk 0:01:00]} 2. Bg2 {[%clk 0:00:59.3]} 2... d5 {[%clk 0:00:59.6]} 3. e3 {[%clk 0:00:58.5]} 3... c6 {[%clk 0:00:59.2]} 4. Ne2 {[%clk 0:00:57.5]} 4... f5 {[%clk 0:00:57]} 5. O-O {[%clk 0:00:57]} 5... Nf6 {[%clk 0:00:55.6]} 6. d4 {[%clk 0:00:56.6]} 6... e4 {[%clk 0:00:53.8]} 7. Nf4 {[%clk 0:00:54.6]} 7... Bb4 {[%clk 0:00:52.9]} 8. c3 {[%clk 0:00:53.4]} 8... Bd6 {[%clk 0:00:51.9]} 9. b4 {[%clk 0:00:52.8]} 9... Bxf4 {[%clk 0:00:50.8]} 10. exf4 {[%clk 0:00:50.9]} 10... O-O {[%clk 0:00:50.6]} 11. Be3 {[%clk 0:00:49.7]} 11... Nbd7 {[%clk 0:00:50.3]} 12. a4 {[%clk 0:00:48.8]} 12... Nb6 {[%clk 0:00:49.9]} 13. Nd2 {[%clk 0:00:44.1]} 13... Nc4 {[%clk 0:00:49.5]} 14. Nxc4 {[%clk 0:00:42.1]} 14... dxc4 {[%clk 0:00:49.2]} 15. b5 {[%clk 0:00:39.9]} 15... Qd5 {[%clk 0:00:48.6]} 16. Qe2 {[%clk 0:00:36.8]} 16... cxb5 {[%clk 0:00:46.4]} 17. axb5 {[%clk 0:00:34.8]} 17... Qxb5 {[%clk 0:00:46.1]} 18. Rfb1 {[%clk 0:00:33.7]} 18... Qd5 {[%clk 0:00:41.5]} 19. Bf1 {[%clk 0:00:32.3]} 19... Ng4 {[%clk 0:00:41]} 20. h3 {[%clk 0:00:29.4]} 20... Nxe3 {[%clk 0:00:36.5]} 21. fxe3 {[%clk 0:00:28.2]} 21... Be6 {[%clk 0:00:34.2]} 22. Rb4 {[%clk 0:00:25.3]} 22... b5 {[%clk 0:00:33]} 23. Ra5 {[%clk 0:00:21.6]} 23... a6 {[%clk 0:00:30.6]} 24. Qa2 {[%clk 0:00:18.3]} 24... Rf6 {[%clk 0:00:30.1]} 25. Rbxb5 {[%clk 0:00:15.3]} 25... axb5 {[%clk 0:00:28.8]} 26. Rxa8+ {[%clk 0:00:13.1]} 26... Kf7 {[%clk 0:00:26.5]} 27. Qa7+ {[%clk 0:00:10.8]} 27... Kg6 {[%clk 0:00:25]} 28. Be2 {[%clk 0:00:09.2]} 28... b4 {[%clk 0:00:19.3]} 29. Qc5 {[%clk 0:00:04.1]} 29... bxc3 {[%clk 0:00:17.8]} 30. Qxd5 {[%clk 0:00:02.5]} 30... Bxd5 {[%clk 0:00:17.5]} 31. Bd1 {[%clk 0:00:01.2]} 31... Rb6 {[%clk 0:00:16.5]} 0-1

[Event "Live Chess"]
[Site "Chess.com"]
[Date "2011.01.28"]
[Round "-"]
[White "hipposcottimus"]
[Black "AmadouCeesay"]
[Result "1-0"]
[CurrentPosition "1Q2kb2/p1r1np1r/3R1B1p/6p1/4P3/2P5/PP3PPP/2K4R b - -"]
[Timezone "UTC"]
[ECO "C50"]
[ECOUrl "https://www.chess.com/openings/Italian-Game-3...d6-4.d4-exd4-5.Nxd4"]
[UTCDate "2011.01.28"]
[UTCTime "23:38:40"]
[WhiteElo "1546"]
[BlackElo "1572"]
[TimeControl "60"]
[Termination "hipposcottimus won on time"]
[StartTime "23:38:40"]
[EndDate "2011.01.28"]
[EndTime "23:39:53"]
[Link "https://www.chess.com/game/live/92429037"]

1. e4 {[%clk 0:01:00]} 1... e5 {[%clk 0:01:00]} 2. Nf3 {[%clk 0:00:59.7]} 2... Nc6 {[%clk 0:00:59.3]} 3. Bc4 {[%clk 0:00:59.4]} 3... d6 {[%clk 0:00:58.6]} 4. d4 {[%clk 0:00:57.6]} 4... exd4 {[%clk 0:00:56.1]} 5. Nxd4 {[%clk 0:00:56.3]} 5... Nxd4 {[%clk 0:00:55.1]} 6. Qxd4 {[%clk 0:00:55.4]} 6... Be6 {[%clk 0:00:54.6]} 7. Nc3 {[%clk 0:00:54.9]} 7... Bxc4 {[%clk 0:00:53.1]} 8. Qxc4 {[%clk 0:00:54.7]} 8... Qd7 {[%clk 0:00:50.4]} 9. Nd5 {[%clk 0:00:54.2]} 9... Qc6 {[%clk 0:00:49]} 10. Nxc7+ {[%clk 0:00:51.2]} 10... Qxc7 {[%clk 0:00:46.7]} 11. Qxc7 {[%clk 0:00:50.1]} 11... Ne7 {[%clk 0:00:42.2]} 12. Qxb7 {[%clk 0:00:49.3]} 12... Rc8 {[%clk 0:00:40.8]} 13. c3 {[%clk 0:00:47.5]} 13... Kd8 {[%clk 0:00:40.2]} 14. Bg5 {[%clk 0:00:46.1]} 14... g6 {[%clk 0:00:38.5]} 15. Bh4 {[%clk 0:00:45.8]} 15... h6 {[%clk 0:00:30.9]} 16. Bf6 {[%clk 0:00:42.2]} 16... Rh7 {[%clk 0:00:28.6]} 17. O-O-O {[%clk 0:00:40.1]} 17... g5 {[%clk 0:00:27.5]} 18. Rd5 {[%clk 0:00:39.1]} 18... Rc7 {[%clk 0:00:23.9]} 19. Rxd6+ {[%clk 0:00:37.8]} 19... Ke8 {[%clk 0:00:21.1]} 20. Qb8+ {[%clk 0:00:35.7]} 1-0

[Event "Live Chess"]
[Site "Chess.com"]
[Date "2011.01.28"]
[Round "-"]
[White "AmadouCeesay"]
[Black "hipposcottimus"]
[Result "1-0"]
[CurrentPosition "6k1/p1p3p1/1p6/3pN3/3P2pr/2P2p2/PP3Kp1/8 b - -"]
[Timezone "UTC"]
[ECO "A00"]
[ECOUrl "https://www.chess.com/openings/Kings-Fianchetto-Opening-1...e5-2.Bg2-d5"]
[UTCDate "2011.01.28"]
[UTCTime "23:35:48"]
[WhiteElo "1581"]
[BlackElo "1537"]
[TimeControl "60"]
[Termination "AmadouCeesay won on time"]
[StartTime "23:35:48"]
[EndDate "2011.01.28"]
[EndTime "23:38:03"]
[Link "https://www.chess.com/game/live/92428407"]

1. g3 {[%clk 0:01:00]} 1... e5 {[%clk 0:01:00]} 2. Bg2 {[%clk 0:00:59.6]} 2... d5 {[%clk 0:00:59.7]} 3. e3 {[%clk 0:00:59.2]} 3... e4 {[%clk 0:00:59.3]} 4. Ne2 {[%clk 0:00:58.8]} 4... f5 {[%clk 0:00:59]} 5. O-O {[%clk 0:00:58.3]} 5... Nf6 {[%clk 0:00:58.7]} 6. Nf4 {[%clk 0:00:57.5]} 6... Nc6 {[%clk 0:00:58.4]} 7. d4 {[%clk 0:00:57]} 7... Bd6 {[%clk 0:00:56.8]} 8. c3 {[%clk 0:00:55.7]} 8... O-O {[%clk 0:00:56.5]} 9. Nd2 {[%clk 0:00:52.7]} 9... Bxf4 {[%clk 0:00:56.2]} 10. exf4 {[%clk 0:00:50.9]} 10... Nh5 {[%clk 0:00:55.9]} 11. Nb3 {[%clk 0:00:49.4]} 11... Nf6 {[%clk 0:00:54.6]} 12. Nc5 {[%clk 0:00:47.9]} 12... b6 {[%clk 0:00:53.3]} 13. Nb3 {[%clk 0:00:46.6]} 13... Ba6 {[%clk 0:00:50.8]} 14. Re1 {[%clk 0:00:44.3]} 14... Qe8 {[%clk 0:00:46.3]} 15. Bf1 {[%clk 0:00:43.2]} 15... Qg6 {[%clk 0:00:45.3]} 16. Bxa6 {[%clk 0:00:40.3]} 16... Ng4 {[%clk 0:00:40.5]} 17. Be2 {[%clk 0:00:36.6]} 17... Qh5 {[%clk 0:00:34.6]} 18. Bxg4 {[%clk 0:00:35.2]} 18... fxg4 {[%clk 0:00:34.3]} 19. Be3 {[%clk 0:00:33]} 19... Rf6 {[%clk 0:00:33.8]} 20. Qe2 {[%clk 0:00:31.9]} 20... Rh6 {[%clk 0:00:33]} 21. h4 {[%clk 0:00:27.4]} 21... gxh3 {[%clk 0:00:31.4]} 22. Qxh5 {[%clk 0:00:25.6]} 22... Rxh5 {[%clk 0:00:28.4]} 23. Kh2 {[%clk 0:00:24.7]} 23... Ne7 {[%clk 0:00:24.6]} 24. g4 {[%clk 0:00:23.5]} 24... Rh4 {[%clk 0:00:22.3]} 25. Rg1 {[%clk 0:00:21.8]} 25... Ng6 {[%clk 0:00:20.6]} 26. Rg3 {[%clk 0:00:20.3]} 26... Rf8 {[%clk 0:00:18.6]} 27. Rag1 {[%clk 0:00:18.7]} 27... Nxf4 {[%clk 0:00:16.6]} 28. Bxf4 {[%clk 0:00:17]} 28... Rxf4 {[%clk 0:00:15.8]} 29. f3 {[%clk 0:00:16.1]} 29... exf3 {[%clk 0:00:14.4]} 30. Rf1 {[%clk 0:00:14.7]} 30... Re4 {[%clk 0:00:11.1]} 31. Rf2 {[%clk 0:00:10.8]} 31... h5 {[%clk 0:00:06.2]} 32. Nc1 {[%clk 0:00:09.6]} 32... hxg4 {[%clk 0:00:04.9]} 33. Nd3 {[%clk 0:00:07.4]} 33... Re2 {[%clk 0:00:04.2]} 34. Ne5 {[%clk 0:00:06.1]} 34... Rxf2+ {[%clk 0:00:02.8]} 35. Kg1 {[%clk 0:00:05.6]} 35... Rg2+ {[%clk 0:00:00.7]} 36. Rxg2 {[%clk 0:00:04.5]} 36... hxg2 {[%clk 0:00:00.2]} 37. Kf2 {[%clk 0:00:04]} 1-0

[Event "Live Chess"]
[Site "Chess.com"]
[Date "2011.01.28"]
[Round "-"]
[White "AmadouCeesay"]
[Black "hipposcottimus"]
[Result "1-0"]
[CurrentPosition "4k3/4P3/2p3p1/2p2pK1/p1P2P1P/P7/1P2R3/8 b - c3"]
[Timezone "UTC"]
[ECO "C30"]
[ECOUrl "https://www.chess.com/openings/Kings-Gambit-Declined-Queens-Knight-Defense-3.Nf3"]
[UTCDate "2011.01.28"]
[UTCTime "23:32:49"]
[WhiteElo "1566"]
[BlackElo "1552"]
[TimeControl "60"]
[Termination "AmadouCeesay won on time"]
[StartTime "23:32:49"]
[EndDate "2011.01.28"]
[EndTime "23:35:02"]
[Link "https://www.chess.com/game/live/92427710"]

1. e4 {[%clk 0:01:00]} 1... e5 {[%clk 0:01:00]} 2. f4 {[%clk 0:00:59.5]} 2... Nc6 {[%clk 0:00:59.6]} 3. Nf3 {[%clk 0:00:58.9]} 3... d5 {[%clk 0:00:58.1]} 4. d3 {[%clk 0:00:58.3]} 4... dxe4 {[%clk 0:00:57]} 5. dxe4 {[%clk 0:00:54.9]} 5... Qxd1+ {[%clk 0:00:55.6]} 6. Kxd1 {[%clk 0:00:54.4]} 6... Nb4 {[%clk 0:00:54.1]} 7. a3 {[%clk 0:00:52.6]} 7... Nc6 {[%clk 0:00:52.6]} 8. Bb5 {[%clk 0:00:50.4]} 8... Nf6 {[%clk 0:00:49.8]} 9. Bxc6+ {[%clk 0:00:49.4]} 9... bxc6 {[%clk 0:00:49.4]} 10. Nc3 {[%clk 0:00:48.8]} 10... Bd6 {[%clk 0:00:43.9]} 11. fxe5 {[%clk 0:00:47.4]} 11... Nxe4 {[%clk 0:00:42.3]} 12. Nxe4 {[%clk 0:00:44.8]} 12... Be7 {[%clk 0:00:36.4]} 13. Bg5 {[%clk 0:00:43.5]} 13... Bg4 {[%clk 0:00:36.1]} 14. Bxe7 {[%clk 0:00:40.5]} 14... Bxf3+ {[%clk 0:00:35.4]} 15. gxf3 {[%clk 0:00:38.3]} 15... Kxe7 {[%clk 0:00:35.1]} 16. f4 {[%clk 0:00:36.7]} 16... Rad8+ {[%clk 0:00:34.5]} 17. Ke2 {[%clk 0:00:35.7]} 17... Rd4 {[%clk 0:00:34]} 18. Ke3 {[%clk 0:00:31.7]} 18... Rhd8 {[%clk 0:00:29.2]} 19. Rhe1 {[%clk 0:00:27.3]} 19... g6 {[%clk 0:00:23.9]} 20. Re2 {[%clk 0:00:25.3]} 20... f5 {[%clk 0:00:22.1]} 21. Nf6 {[%clk 0:00:20.3]} 21... Kf7 {[%clk 0:00:21.7]} 22. Kf3 {[%clk 0:00:18.6]} 22... c5 {[%clk 0:00:13.7]} 23. Nxh7 {[%clk 0:00:15.8]} 23... Kg7 {[%clk 0:00:12.3]} 24. Ng5 {[%clk 0:00:14.7]} 24... Kh6 {[%clk 0:00:11.5]} 25. Ne6 {[%clk 0:00:13.7]} 25... Kh5 {[%clk 0:00:10.5]} 26. Nxd8 {[%clk 0:00:12.5]} 26... Rxd8 {[%clk 0:00:08.6]} 27. e6 {[%clk 0:00:11.8]} 27... Re8 {[%clk 0:00:07.4]} 28. e7 {[%clk 0:00:10.8]} 28... Kh6 {[%clk 0:00:06.7]} 29. Rd1 {[%clk 0:00:09.9]} 29... Kg7 {[%clk 0:00:06.3]} 30. Rd8 {[%clk 0:00:09.5]} 30... Kf7 {[%clk 0:00:05.7]} 31. Rxe8 {[%clk 0:00:08.7]} 31... Kxe8 {[%clk 0:00:05.3]} 32. Kg3 {[%clk 0:00:07.7]} 32... c6 {[%clk 0:00:02.6]} 33. Kh4 {[%clk 0:00:07.2]} 33... a6 {[%clk 0:00:02.3]} 34. Kg5 {[%clk 0:00:06.7]} 34... a5 {[%clk 0:00:00.6]} 35. h4 {[%clk 0:00:06.2]} 35... a4 {[%clk 0:00:00.1]} 36. c4 {[%clk 0:00:05.3]} 1-0

[Event "Live Chess"]
[Site "Chess.com"]
[Date "2011.01.28"]
[Round "-"]
[White "hipposcottimus"]
[Black "AmadouCeesay"]
[Result "1-0"]
[CurrentPosition "4r2k/ppp4p/3p2p1/6q1/3Q4/1P2N3/P1P2rPP/6RK b - -"]
[Timezone "UTC"]
[ECO "C50"]
[ECOUrl "https://www.chess.com/openings/Italian-Game-3...d6-4.d4-exd4-5.Nxd4"]
[UTCDate "2011.01.28"]
[UTCTime "23:30:24"]
[WhiteElo "1560"]
[BlackElo "1558"]
[TimeControl "60"]
[Termination "hipposcottimus won on time"]
[StartTime "23:30:24"]
[EndDate "2011.01.28"]
[EndTime "23:32:23"]
[Link "https://www.chess.com/game/live/92427069"]

1. e4 {[%clk 0:01:00]} 1... e5 {[%clk 0:01:00]} 2. Nf3 {[%clk 0:00:59.2]} 2... Nc6 {[%clk 0:00:59.6]} 3. Bc4 {[%clk 0:00:58.7]} 3... d6 {[%clk 0:00:58.6]} 4. d4 {[%clk 0:00:57.2]} 4... exd4 {[%clk 0:00:55.3]} 5. Nxd4 {[%clk 0:00:55.6]} 5... Be6 {[%clk 0:00:53.1]} 6. Nxe6 {[%clk 0:00:52.6]} 6... fxe6 {[%clk 0:00:50.9]} 7. Bxe6 {[%clk 0:00:52.3]} 7... Qe7 {[%clk 0:00:50.2]} 8. Bd5 {[%clk 0:00:49]} 8... Nf6 {[%clk 0:00:47.8]} 9. Nc3 {[%clk 0:00:48.6]} 9... Nxd5 {[%clk 0:00:46]} 10. Nxd5 {[%clk 0:00:45.2]} 10... Qxe4+ {[%clk 0:00:44.6]} 11. Ne3 {[%clk 0:00:44.8]} 11... Be7 {[%clk 0:00:40.7]} 12. O-O {[%clk 0:00:42]} 12... O-O {[%clk 0:00:38.7]} 13. Re1 {[%clk 0:00:40.1]} 13... Qg6 {[%clk 0:00:34.5]} 14. Ng4 {[%clk 0:00:36.2]} 14... Bg5 {[%clk 0:00:31.1]} 15. Qe2 {[%clk 0:00:30.5]} 15... Bxc1 {[%clk 0:00:28.4]} 16. Raxc1 {[%clk 0:00:27.4]} 16... Rae8 {[%clk 0:00:26.8]} 17. Qc4+ {[%clk 0:00:26.4]} 17... Kh8 {[%clk 0:00:22.4]} 18. Ne3 {[%clk 0:00:26.1]} 18... Rf6 {[%clk 0:00:15.9]} 19. b3 {[%clk 0:00:24.9]} 19... Ne5 {[%clk 0:00:14.7]} 20. Qe2 {[%clk 0:00:23]} 20... Nf3+ {[%clk 0:00:12.2]} 21. Kh1 {[%clk 0:00:16.3]} 21... Nxe1 {[%clk 0:00:11]} 22. Rxe1 {[%clk 0:00:16]} 22... Qg5 {[%clk 0:00:08.9]} 23. Qd3 {[%clk 0:00:14]} 23... g6 {[%clk 0:00:06.3]} 24. Rg1 {[%clk 0:00:11.1]} 24... Rxf2 {[%clk 0:00:03.3]} 25. Qd4+ {[%clk 0:00:10.1]} 1-0

[Event "Live Chess"]
[Site "Chess.com"]
[Date "2011.01.28"]
[Round "-"]
[White "SSchach"]
[Black "hipposcottimus"]
[Result "0-1"]
[CurrentPosition "r4rk1/pbpp2p1/1p1n3p/8/3qp3/P2P2PQ/1PB5/1K1R3R w - -"]
[Timezone "UTC"]
[ECO "C65"]
[ECOUrl "https://www.chess.com/openings/Ruy-Lopez-Opening-Berlin-Defense"]
[UTCDate "2011.01.28"]
[UTCTime "23:27:32"]
[WhiteElo "1519"]
[BlackElo "1552"]
[TimeControl "60"]
[Termination "hipposcottimus won on time"]
[StartTime "23:27:32"]
[EndDate "2011.01.28"]
[EndTime "23:29:40"]
[Link "https://www.chess.com/game/live/92426395"]

1. e4 {[%clk 0:01:00]} 1... e5 {[%clk 0:01:00]} 2. Nf3 {[%clk 0:00:59.2]} 2... Nc6 {[%clk 0:00:59.1]} 3. Bb5 {[%clk 0:00:57.7]} 3... Nf6 {[%clk 0:00:58.2]} 4. c3 {[%clk 0:00:56.9]} 4... Nxe4 {[%clk 0:00:54.4]} 5. d3 {[%clk 0:00:55.7]} 5... Nd6 {[%clk 0:00:48.5]} 6. Ba4 {[%clk 0:00:53.2]} 6... f6 {[%clk 0:00:45.8]} 7. Be3 {[%clk 0:00:50.8]} 7... Be7 {[%clk 0:00:44.9]} 8. Nbd2 {[%clk 0:00:49.8]} 8... O-O {[%clk 0:00:44.4]} 9. a3 {[%clk 0:00:46.1]} 9... b6 {[%clk 0:00:43.7]} 10. Bc2 {[%clk 0:00:45.2]} 10... Bb7 {[%clk 0:00:42.5]} 11. Nf1 {[%clk 0:00:43.8]} 11... f5 {[%clk 0:00:41]} 12. h4 {[%clk 0:00:42.7]} 12... e4 {[%clk 0:00:37.3]} 13. Nd4 {[%clk 0:00:35.4]} 13... Bxh4 {[%clk 0:00:34.1]} 14. g3 {[%clk 0:00:28.8]} 14... f4 {[%clk 0:00:24]} 15. Bxf4 {[%clk 0:00:20.6]} 15... Bg5 {[%clk 0:00:18.1]} 16. Qh5 {[%clk 0:00:18]} 16... h6 {[%clk 0:00:11.7]} 17. Bxg5 {[%clk 0:00:16.3]} 17... Qxg5 {[%clk 0:00:10.8]} 18. Qh3 {[%clk 0:00:12.6]} 18... Nxd4 {[%clk 0:00:08.1]} 19. cxd4 {[%clk 0:00:10.4]} 19... Qf6 {[%clk 0:00:07.4]} 20. O-O-O {[%clk 0:00:06.5]} 20... Qxf2 {[%clk 0:00:06.2]} 21. Ne3 {[%clk 0:00:04.3]} 21... Qxe3+ {[%clk 0:00:01.7]} 22. Kb1 {[%clk 0:00:01.9]} 22... Qxd4 {[%clk 0:00:01.4]} 0-1

[Event "Live Chess"]
[Site "Chess.com"]
[Date "2011.01.28"]
[Round "-"]
[White "hipposcottimus"]
[Black "SSchach"]
[Result "1-0"]
[CurrentPosition "rb6/3R2pk/pp2B2p/5P2/P7/1P6/6K1/4R3 b - -"]
[Timezone "UTC"]
[ECO "B20"]
[ECOUrl "https://www.chess.com/openings/Sicilian-Defense"]
[UTCDate "2011.01.28"]
[UTCTime "23:24:49"]
[WhiteElo "1552"]
[BlackElo "1519"]
[TimeControl "60"]
[Termination "hipposcottimus won on time"]
[StartTime "23:24:49"]
[EndDate "2011.01.28"]
[EndTime "23:27:01"]
[Link "https://www.chess.com/game/live/92425685"]

1. e4 {[%clk 0:01:00]} 1... c5 {[%clk 0:01:00]} 2. Bb5 {[%clk 0:00:58.3]} 2... Nc6 {[%clk 0:00:57.9]} 3. Be2 {[%clk 0:00:57.9]} 3... e6 {[%clk 0:00:56.8]} 4. c4 {[%clk 0:00:57.3]} 4... a6 {[%clk 0:00:55]} 5. d3 {[%clk 0:00:56]} 5... Bd6 {[%clk 0:00:54]} 6. a4 {[%clk 0:00:54.4]} 6... b6 {[%clk 0:00:53.2]} 7. b3 {[%clk 0:00:53.3]} 7... Bb7 {[%clk 0:00:52]} 8. f4 {[%clk 0:00:49.9]} 8... Nge7 {[%clk 0:00:50.2]} 9. Nf3 {[%clk 0:00:49.1]} 9... h6 {[%clk 0:00:48.7]} 10. e5 {[%clk 0:00:48.5]} 10... Bb8 {[%clk 0:00:47.3]} 11. O-O {[%clk 0:00:47.7]} 11... d6 {[%clk 0:00:45.6]} 12. d4 {[%clk 0:00:47.2]} 12... Nxd4 {[%clk 0:00:43]} 13. Nxd4 {[%clk 0:00:45.1]} 13... cxd4 {[%clk 0:00:42.2]} 14. Qxd4 {[%clk 0:00:44.6]} 14... d5 {[%clk 0:00:39.5]} 15. Nc3 {[%clk 0:00:41.1]} 15... Ba7 {[%clk 0:00:36.5]} 16. Kh1 {[%clk 0:00:28.9]} 16... O-O {[%clk 0:00:34.1]} 17. cxd5 {[%clk 0:00:27.2]} 17... Nxd5 {[%clk 0:00:31.7]} 18. Ne4 {[%clk 0:00:23.9]} 18... f5 {[%clk 0:00:29.4]} 19. exf6 {[%clk 0:00:21.8]} 19... Rxf6 {[%clk 0:00:24.9]} 20. Nxf6+ {[%clk 0:00:20.4]} 20... Qxf6 {[%clk 0:00:20.4]} 21. Bg4 {[%clk 0:00:19.9]} 21... Qxd4 {[%clk 0:00:18.7]} 22. Bxe6+ {[%clk 0:00:17.4]} 22... Kh8 {[%clk 0:00:16.9]} 23. f5 {[%clk 0:00:13.7]} 23... Ne3 {[%clk 0:00:10.2]} 24. Bxe3 {[%clk 0:00:09.3]} 24... Qxe3 {[%clk 0:00:09.1]} 25. Rfe1 {[%clk 0:00:08.5]} 25... Qf4 {[%clk 0:00:06.6]} 26. Rad1 {[%clk 0:00:08.1]} 26... Qxh2+ {[%clk 0:00:05.3]} 27. Kxh2 {[%clk 0:00:06.5]} 27... Bb8+ {[%clk 0:00:02.3]} 28. Kh1 {[%clk 0:00:06.2]} 28... Kh7 {[%clk 0:00:01.7]} 29. Rd7 {[%clk 0:00:05]} 29... Bxg2+ {[%clk 0:00:00.1]} 30. Kxg2 {[%clk 0:00:03.2]} 1-0